fUSD/lending_fUSD_20240115
["ID","MTS","AMOUNT","RATE_DAILY","PERIOD"]
[311702553,1705341033888,-311.463,0.00029017,2]
[311702554,1705341033898,-204.0,0.00029057,12]
[311702555,1705341033908,-163.0200917,0.00029072,2]
[311702556,1705341033918,-214.2631249,0.00029072,2]
[311702557,1705341033927,-180.39375868,0.00029072,2]
[311702558,1705341033937,-275.47,0.00029366,2]
[311702559,1705341033947,-1560.91254512,0.00029493,2]
[311702560,1705341033957,-188.31609233,0.000295,3]
[311702561,1705341033967,-150.0,0.00029564,7]
[311702562,1705341033977,-522.73,0.00029615,2]
[311702563,1705341033987,-150.0,0.00029636,7]
[311702564,1705341033997,-150.0,0.00029707,7]
[311702565,1705341034007,-150.0,0.00029779,7]
[311702566,1705341034016,-737.0,0.000298,2]
[311702567,1705341034026,-150.0,0.0002985,7]
[311702568,1705341034035,-1000.0,0.00029862,2]
[311702569,1705341034046,-150.0,0.00029921,7]
[311702570,1705341034056,-150.0,0.00029993,7]
[311702571,1705341034066,-7999.99,0.00029999,6]
[311702572,1705341034076,-1000.0,0.00029999,2]
[311702573,1705341034086,-1000.0,0.00029999,2]
[311702574,1705341034095,-1000.0,0.00029999,2]
[311702575,1705341034105,-100000.0,0.0003,2]
[311702576,1705341034119,-4741.00740011,0.0003,4]
[311702577,1705341034129,-309.18374779,0.0003,7]
[311702578,1705341034139,-357.55520178,0.0003,2]
[311702579,1705341034149,-8644.05875887,0.0003,4]
[311702580,1705341034163,-152.02,0.0003,2]
[311702581,1705341034173,-152.02,0.0003,2]
[311702582,1705341034183,-152.02,0.0003,2]
[311702583,1705341034192,-152.02,0.0003,2]
[311702584,1705341034203,-152.02,0.0003,2]
[311702585,1705341034213,-152.02,0.0003,2]
[311702586,1705341034223,-1144.28682433,0.0003,3]
[311702587,1705341034234,-1550.0,0.0003,3]
[311702588,1705341034246,-3000.0,0.0003,2]
[311702589,1705341034256,-3000.0,0.0003,2]
[311702590,1705341034266,-157.75,0.0003,2]
[311702591,1705341034276,-336.55,0.0003004,2]
[311702592,1705341034288,-150.0,0.00030064,7]
[311702593,1705341034298,-1560.91254512,0.00030131,2]
[311702594,1705341034308,-150.0,0.00030136,7]
[311702595,1705341034318,-352.14,0.00030154,2]
[311702596,1705341034329,-3000.0,0.0003019,2]
[311702597,1705341034339,-150.0,0.00030207,7]
[311702598,1705341034350,-152.70971941,0.00030266,11]
[311702599,1705341034360,-152.70971941,0.00030266,12]
[311702600,1705341034371,-152.70971941,0.00030266,11]
[311702601,1705341034381,-152.70971941,0.00030266,9]
[311702602,1705341034391,-152.70971941,0.00030266,12]
[311702603,1705341034401,-150.0,0.00030278,7]
[311702604,1705341034410,-275.47,0.00030345,2]
[311702605,1705341034420,-150.0,0.0003035,7]
[311702606,1705341034429,-156.85742576,0.00030365,7]
[311702607,1705341034439,-150.0,0.00030421,7]
[311702608,1705341034449,-150.0,0.00030493,7]
[311702609,1705341034462,-150.90066329,0.00030497,7]
[311702610,1705341034472,-175.21,0.00030541,2]
[311702611,1705341034481,-150.0,0.00030564,7]
[311702612,1705341034491,-150.0,0.00030636,7]
[311702613,1705341034500,-204.0,0.00030685,14]
[311702614,1705341034509,-153.11,0.00030689,2]
[311702615,1705341034519,-150.0,0.00030707,7]
[311702616,1705341034529,-10000.0,0.00030715,2]
[311702617,1705341034539,-1560.91254512,0.0003077,2]
[311702618,1705341034549,-150.0,0.00030778,7]
[311702619,1705341034559,-150.0,0.0003085,7]
[311702620,1705341034570,-150.0,0.00030921,7]
[311702621,1705341034580,-153.11,0.00030945,2]
[311702622,1705341034591,-150.90066329,0.00030956,7]
[311702623,1705341034602,-200.0,0.00030984,3]
[311702624,1705341034612,-152.70971941,0.00030989,10]
[311702625,1705341034622,-152.70971941,0.00030989,11]
[311702626,1705341034632,-152.70971941,0.00030989,11]
[311702627,1705341034644,-152.70971941,0.00030989,8]
[311702628,1705341034655,-150.0,0.00030993,7]
[311702629,1705341034666,-1000.0,0.00030997,2]
[311702630,1705341034677,-100000.0,0.00031,2]
[311702631,1705341034687,-151.0,0.00031057,120]
[311702632,1705341034698,-150.0,0.00031064,7]
[311702633,1705341034708,-1076.0,0.00031134,5]
[311702634,1705341034719,-150.0,0.00031135,7]
[311702635,1705341034729,-153.11,0.00031201,2]
[311702636,1705341034738,-150.0,0.00031207,7]
[311702637,1705341034748,-163.24622321,0.00031273,7]
[311702638,1705341034758,-150.0,0.00031278,7]
[311702642,1705341035276,-275.47,0.00031323,2]
[311702643,1705341035297,-150.0,0.0003135,7]
[311702644,1705341035308,-2000.0,0.00031382,4]
[311702645,1705341035318,-164.5705415,0.00031393,2]
[311702646,1705341035328,-500.0,0.00031396,10]
[311702647,1705341035338,-1560.91254512,0.00031408,3]
[311702648,1705341035348,-150.0,0.00031421,7]
[311702649,1705341035358,-3000.0,0.0003144,2]
[311702650,1705341035369,-153.11,0.00031456,2]
[311702651,1705341035379,-152.06853973,0.00031492,2]
[311702652,1705341035389,-150.0,0.00031492,7]
[311702653,1705341035398,-2795.97,0.000315,7]
[311702654,1705341035408,-209.94,0.00031507,2]
[311702655,1705341035418,-163.24622321,0.00031522,7]
[311702656,1705341035428,-150.0,0.00031564,7]
[311702657,1705341035438,-500.0,0.00031592,2]
[311702658,1705341035448,-150.0,0.00031635,7]
[311702659,1705341035458,-3731.0,0.00031635,4]
[311702660,1705341035468,-13063.99430769,0.0003165,7]
[311702661,1705341035478,-1282.55366851,0.0003165,6]
[311702662,1705341035487,-8289.39601847,0.0003165,7]
[311702663,1705341035497,-8293.72997219,0.0003165,7]
[311702664,1705341035507,-23720.84516308,0.0003165,7]
[311702665,1705341035517,-5147.82527531,0.0003165,7]
[311702666,1705341035526,-151.0,0.0003169,30]
[311702667,1705341035536,-150.0,0.00031707,7]
[311702668,1705341035546,-153.11,0.00031712,2]
[311702669,1705341035556,-293.92,0.00031722,2]
[311702670,1705341035566,-150.0,0.00031778,7]
[311702671,1705341035576,-152.70971941,0.0003179,10]
[311702672,1705341035586,-152.70971941,0.0003179,9]
[311702673,1705341035596,-150.0,0.0003185,7]
[311702674,1705341035606,-150.0,0.00031921,7]
[311702675,1705341035616,-500.0,0.00031944,10]
[311702676,1705341035626,-150.90066329,0.00031944,7]
[311702677,1705341035636,-153.11,0.00031968,2]
[311702678,1705341035646,-570.27959187,0.0003199,2]
[311702679,1705341035656,-7916.38,0.00031992,4]
[311702680,1705341035665,-150.0,0.00031992,7]
[311702681,1705341035675,-1000.0,0.00031999,2]
[311702682,1705341035686,-100000.0,0.00032,2]
[311702683,1705341035696,-298.75915033,0.00032,4]
[311702684,1705341035706,-13063.98403504,0.00032,4]
[311702685,1705341035716,-1600.0,0.00032,3]
[311702686,1705341035726,-1560.91254512,0.00032047,3]
[311702687,1705341035736,-150.90066329,0.00032061,7]
[311702688,1705341035746,-150.0,0.00032064,7]
[311702689,1705341035756,-150.0,0.00032135,7]
[311702690,1705341035766,-150.0,0.00032207,7]
[311702691,1705341035775,-1000.0,0.00032213,7]
[311702692,1705341035790,-1000.0,0.00032213,7]
[311702693,1705341035800,-1000.0,0.00032213,7]
[311702694,1705341035810,-153.11,0.00032224,2]
[311702695,1705341035820,-150.0,0.00032278,7]
[311702696,1705341035831,-275.47,0.00032302,2]
[311702697,1705341035841,-336.55,0.00032304,2]
[311702698,1705341035851,-51.91641353,0.00032308,2]
[311702699,1705341035879,-406.45312757,0.00032308,2]
[311702700,1705341035910,-64.3604589,0.00032308,2]
[311702701,1705341035920,-204.0,0.00032314,17]
[311702702,1705341035931,-197.04440094,0.00032328,2]
[311702712,1705341039034,-445.87201303,0.0002375,2]
[311702713,1705341039044,-445.87201303,0.000249,2]
[311702714,1705341039053,-62772.54176019,0.00025,2]
[311702715,1705341039065,-88753.74854093,0.00025,2]
[311702716,1705341039102,-62980.88852684,0.00025,2]
[311702717,1705341040912,-2098.28,0.00025,2]
[311702718,1705341040970,-774.96,0.00025,2]
[311702719,1705341041081,-3771.71754484,0.00025,2]
[311702720,1705341041093,-8290.17630029,0.00025,2]
[311702721,1705341041109,-1196.26465068,0.00025,2]
[311702722,1705341041123,-1580.66952271,0.00025,2]
[311702725,1705341043277,-2194.76996659,0.00025,2]
[311702726,1705341043289,-3008.79691165,0.00025,2]
[311702727,1705341043334,-1288.83,0.00025,2]
[311702728,1705341043450,-4149.0,0.00025,2]
[311702729,1705341043611,-3859.6789593,0.00025,2]
[311702764,1705341046342,-520.93349314,0.00024999,10]
[311702765,1705341046352,-17357.12281016,0.00025,2]
[311702766,1705341046364,-9194.53467206,0.00025,2]
[311702767,1705341046376,-1526.6072753,0.00025,2]
[311702768,1705341046402,-61580.75027216,0.00025,2]
[311702769,1705341046413,-534.56085466,0.00025,2]
[311702770,1705341046457,-262279.51064784,0.00025,2]
[311702771,1705341046469,-869.90228197,0.00025,2]
[311702772,1705341046516,-301.49004616,0.00025,2]
[311702773,1705341046575,-2793.80620387,0.00025,2]
[311702774,1705341046633,-770.0,0.00025,2]
[311702788,1705341144864,1350.0,0.00022078,2]
[311702789,1705341145194,729.44024601,0.00021,2]
[311702790,1705341146969,620.71324438,0.00022078,2]
[311702791,1705341153844,420.5726,0.00021848,2]
[311702792,1705341164128,341.43574546,0.00021,2]
[311702793,1705341166520,992.79374359,0.00022078,2]
[311702802,1705341292401,155.17341309,0.00021847,2]
[311702803,1705341302638,314.1345666,0.00022078,2]
[311702804,1705341312532,150.0,0.00022,2]
[311702807,1705341491254,693.55,0.00021929,2]
[311702808,1705341510998,170.42,0.00022025,2]
[311702809,1705341521497,2981.33,0.00021869,2]
[311702810,1705341560935,200.0,0.00021879,2]
[311702811,1705341572819,154.6,0.00022097,2]
[311702815,1705341593677,1891.70798367,0.00021869,2]
[311702816,1705341602828,150.0,0.00021869,2]
[311702817,1705341603027,150.0,0.00021869,2]
[311702818,1705341603371,293.95610282,0.00021869,2]
[311702820,1705341637912,1038.76477041,0.00021869,2]
[311702822,1705341673466,-155.0,0.00022215,2]
[311702823,1705341673492,-520.93349314,0.00022215,10]
[311702824,1705341673518,-419.33924047,0.00022215,2]
[311702825,1705341673544,-2945.7151429,0.00022216,2]
[311702826,1705341673573,-252.83161781,0.00022216,2]
[311702827,1705341673601,-1202.95567145,0.00022217,2]
[311702828,1705341673628,-2144.43375818,0.00022218,2]
[311702829,1705341673654,-758.57178046,0.00022218,2]
[311702830,1705341673681,-150.0,0.00022222,2]
[311702831,1705341673707,-169.41,0.00022234,2]
[311702832,1705341673734,-279.34,0.00022245,2]
[311702833,1705341673762,-300.0,0.000223,8]
[311702834,1705341673791,-600.0,0.000224,8]
[311702835,1705341673819,-499.99,0.000224,2]
[311702836,1705341673845,-900.0,0.000225,8]
[311702837,1705341673871,-1000.0,0.00022596,2]
[311702838,1705341673897,-53039.7161,0.000226,2]
[311702839,1705341673924,-1200.0,0.000226,8]
[311702840,1705341673951,-3461.76319559,0.00022699,2]
[311702843,1705341702012,-30000.0,0.00022699,2]
[311702846,1705341796774,320.13,0.00019621,2]
[311702847,1705341797168,320.13,0.00021884,2]
[311702888,1705341901979,160.23,0.00021809,2]
[311702889,1705341910601,150.0,0.00020688,2]
[311702890,1705341910870,150.0,0.00021837,4]
[311702891,1705341913163,186.89891874,0.00020688,2]
[311702892,1705341914950,150.61518082,0.00020688,2]
[311702893,1705341916787,201.59695338,0.00020688,2]
[311702894,1705341919097,293.70471238,0.00020688,2]
[311702895,1705341920959,150.0,0.00020688,2]
[311702896,1705341921348,150.0,0.00021016,4]
[311702897,1705341921974,150.0,0.00021344,4]
[311702898,1705341922497,150.0,0.00021673,4]
[311702899,1705341922803,150.0,0.00022001,4]
[311702900,1705341926098,180.68251729,0.00020688,2]
[311702901,1705341927927,243.01365077,0.00020688,2]
[311702902,1705341928084,250.0,0.00021826,2]
[311702903,1705341929730,150.74465778,0.00020688,2]
[311702904,1705341931991,267.88605626,0.00020688,2]
[311702905,1705341936557,150.75574924,0.00020688,2]
[311702906,1705341937310,186.46920897,0.00020688,2]
[311702907,1705341939622,247.71685327,0.00020688,2]
[311702908,1705341965917,250.0,0.00022,2]
[311702909,1705341983127,156.91,0.00021923,2]
[311702910,1705341996749,248.12,0.00021732,2]
[311702911,1705341996918,221.21,0.00021732,2]
[311702913,1705342028235,641.89437017,0.00021,2]
[311702914,1705342033911,163.75,0.00021911,2]
[311702915,1705342035126,150.0,0.00022,2]
[311702916,1705342058408,282.52600257,0.00021923,2]
[311702917,1705342060627,587.166525,0.00022091,2]
[311702918,1705342062780,150.0,0.00022,2]
[311702919,1705342073369,5187.23731145,0.00022,2]
[311702920,1705342079228,2000.0,0.00021717,2]
[311702921,1705342080383,176.05821611,0.00022,2]
[311702922,1705342093454,4036.32334744,0.00022,2]
[311702923,1705342167206,270.07,0.00021671,2]
[311702924,1705342177706,200.0,0.00021671,2]
[311702928,1705342198889,352.1,0.00022,2]
[311702929,1705342203698,513.12,0.00022,2]
[311702931,1705342214704,297.55,0.00021689,2]
[311702932,1705342221877,255.68,0.00021671,2]
[311702933,1705342222284,255.68,0.00021785,2]
[311702934,1705342222500,255.68,0.00021899,2]
[311702935,1705342223064,255.68,0.00022013,2]
[311702938,1705342231507,-158.7139359,0.00022126,2]
[311702939,1705342231516,-314.11964049,0.00022126,2]
[311702940,1705342231525,-255.68,0.00022127,2]
[311702941,1705342231535,-155.0,0.00022182,2]
[311702942,1705342231545,-155.0,0.00022183,2]
[311702943,1705342231554,-3043.00044003,0.00022183,2]
[311702944,1705342231563,-10550.48774312,0.00022183,2]
[311702945,1705342231572,-4485.38425063,0.00022183,2]
[311702946,1705342231582,-2778.97771353,0.00022183,2]
[311702947,1705342231593,-10520.01750502,0.00022183,2]
[311702948,1705342231602,-3623.34664088,0.00022184,2]
[311702949,1705342231611,-1370.98811656,0.00022184,2]
[311702950,1705342231621,-3857.52457021,0.00022184,2]
[311702951,1705342231630,-388.80336537,0.00022184,2]
[311702952,1705342231642,-1151.35392073,0.00022184,2]
[311702953,1705342231653,-521.07491688,0.00022184,2]
[311702954,1705342231666,-544.21279362,0.00022184,2]
[311702955,1705342231675,-1708.36719999,0.00022184,2]
[311702956,1705342231684,-265.35768401,0.00022184,2]
[311702957,1705342231694,-697.51118737,0.00022185,2]
[311702958,1705342231703,-940.13112153,0.00022185,2]
[311702959,1705342231713,-242.35981074,0.00022185,2]
[311702960,1705342231724,-4029.97029377,0.00022185,2]
[311702961,1705342231741,-214.87138041,0.00022185,2]
[311702962,1705342231752,-177.75042243,0.00022185,2]
[311702963,1705342231761,-265.78086323,0.00022185,2]
[311702964,1705342231786,-496.10168245,0.00022185,2]
[311702965,1705342231798,-763.3723559,0.00022185,2]
[311702966,1705342231809,-448.90252226,0.00022185,2]
[311702971,1705342231844,-162.4869,0.00022185,2]
[311702973,1705342231853,-155.0,0.00022186,2]
[311702975,1705342231862,-520.93349314,0.00022186,10]
[311702977,1705342231871,-2554.98179429,0.00022186,2]
[311702978,1705342231883,-401.27165539,0.00022186,2]
[311702979,1705342231976,-556.5846677,0.00022186,2]
[311703000,1705342237480,-155.0,0.00022125,2]
[311703003,1705342237491,-155.0,0.00022125,2]
[311703005,1705342237500,-542.62714348,0.00022125,2]
[311703007,1705342237510,-176.70885652,0.00022186,2]
[311703009,1705342237522,-1522.85420817,0.00022186,2]
[311703010,1705342237532,-208.067669,0.00022187,2]
[311703011,1705342237642,-273.44841998,0.00022187,2]
[311703012,1705342237699,-2404.74581102,0.00022187,2]
[311703013,1705342237709,-156.91,0.00022209,2]
[311703014,1705342237719,-255.68,0.00022241,2]
[311703015,1705342237728,-150.0,0.0002233,4]
[311703016,1705342237738,-255.68,0.00022355,2]
[311703017,1705342237747,-154.74,0.00022395,2]
[311703018,1705342237757,-255.68,0.00022469,2]
[311703019,1705342237766,-156.91,0.00022494,2]
[311703020,1705342237775,-189.36,0.00022576,2]
[311703021,1705342237785,-255.68,0.00022583,2]
[311703022,1705342237794,-166.03457902,0.00022595,2]
[311703023,1705342237804,-316.01926494,0.00022599,2]
[311703024,1705342237813,-331.63839435,0.00022599,2]
[311703025,1705342237823,-166.03457898,0.00022629,2]
[311703026,1705342237833,-316.01926493,0.00022649,2]
[311703027,1705342237842,-150.0,0.00022658,4]
[311703028,1705342237851,-166.03457898,0.00022663,2]
[311703029,1705342237861,-14245.1187327,0.00022689,2]
[311703030,1705342237871,-166.03457898,0.00022697,2]
[311703031,1705342237881,-155.0,0.00022697,2]
[311703032,1705342237891,-326.6529487,0.00022697,2]
[311703033,1705342237901,-155.0,0.00022697,2]
[311703034,1705342237910,-405.37255056,0.00022697,2]
[311703035,1705342237919,-255.68,0.00022697,2]
[311703036,1705342237929,-5094.05466202,0.00022698,2]
[311703037,1705342237939,-1255.0842,0.00022699,2]
[311703038,1705342237949,-35755.69492759,0.00022699,2]
[311703039,1705342237963,-112144.38525824,0.00022699,2]
[311703040,1705342237975,-111960.56480529,0.00022699,2]
[311703045,1705342238014,-11551.89910888,0.00022699,2]
[311703047,1705342238023,-251.0188,0.00022699,2]
[311703050,1705342238037,-42812.7842538,0.00022699,2]
[311703052,1705342238046,-316.01926493,0.00022699,2]
[311703054,1705342238056,-248.12,0.00022711,2]
[311703056,1705342238065,-166.03457898,0.00022731,2]
[311703058,1705342238074,-166.03457898,0.00022764,2]
[311703059,1705342238084,-398.48464407,0.00022767,2]
[311703062,1705342238094,-155.0,0.00022767,2]
[311703063,1705342238103,-154.74,0.00022768,2]
[311703065,1705342238113,-156.91,0.0002278,2]
[311703067,1705342238122,-166.03457898,0.00022798,2]
[311703069,1705342238132,-39465.5965,0.00022799,2]
[311703071,1705342238141,-555.7292,0.00022799,2]
[311703074,1705342238151,-1000.0,0.00022799,2]
[311703076,1705342238160,-1000.0,0.00022799,2]
[311703078,1705342238170,-255.68,0.00022811,2]
[311703080,1705342238179,-166.03457898,0.00022832,2]
[311703082,1705342238189,-166.03457898,0.00022866,2]
[311703084,1705342238198,-500.0,0.00022899,2]
[311703086,1705342238208,-100000.0,0.00022899,2]
[311703088,1705342238218,-125.26533342,0.00022899,2]
[311703095,1705342238359,-84.5024297,0.00022899,2]
[311703097,1705342238369,-4772.4588,0.000229,2]
[311703099,1705342238378,-390.22813628,0.000229,2]
[311703101,1705342238388,-152.50773218,0.000229,2]
[311703103,1705342238398,-166.03457898,0.000229,2]
[311703105,1705342238407,-180.39375868,0.000229,2]
[311703107,1705342238417,-4972.27,0.000229,2]
[311703109,1705342238426,-158.59380943,0.000229,2]
[311703111,1705342238436,-163.0200917,0.000229,2]
[311703113,1705342238445,-187.1863413,0.000229,2]
[311703115,1705342238454,-404.76667555,0.000229,2]
[311703117,1705342238464,-209.76776311,0.000229,2]
[311703119,1705342238473,-200.55854945,0.000229,2]
[311703121,1705342238483,-255.68,0.00022925,2]
[311703123,1705342238492,-514.57867545,0.00022986,2]
[311703125,1705342238501,-244.86508207,0.00022986,4]
[311703127,1705342238511,-233.98135463,0.00022986,4]
[311703129,1705342238520,-190.09319729,0.00022987,2]
[311703131,1705342238530,-190.09319729,0.0002299,2]
[311703133,1705342238539,-190.09319729,0.0002299,2]
[311703136,1705342238549,-155.19087003,0.00022997,2]
[311703138,1705342238561,-542.71586648,0.00022997,2]
[311703140,1705342238571,-4631.8469141,0.00022997,2]
[311703142,1705342238580,-2317.60219358,0.00022997,2]
[311703144,1705342238589,-376.11195413,0.00022997,2]
[311703146,1705342238599,-155.65644823,0.00022997,2]
[311703148,1705342238609,-371.66889406,0.00022997,2]
[311703150,1705342238618,-331.97769118,0.00022997,2]
[311703152,1705342238627,-1143.96252834,0.00022997,2]
[311703154,1705342238637,-234.98930555,0.00022997,2]
[311703156,1705342238647,-20627.60155373,0.00022997,2]
[311703158,1705342238657,-522.36940647,0.00022997,2]
[311703160,1705342238666,-532.38898749,0.00022997,2]
[311703162,1705342238675,-196.77812328,0.00022997,2]
[311703164,1705342238685,-155.38188479,0.00022997,2]
[311703166,1705342238695,-155.94384631,0.00022997,2]
[311703168,1705342238704,-263.15288325,0.00022997,2]
[311703170,1705342238715,-354.05283991,0.00022997,2]
[311703203,1705342239022,-1411.35450445,0.00022997,2]
[311703205,1705342239032,-252.61413747,0.00022997,2]
[311703207,1705342239041,-1201.3591958,0.00022997,2]
[311703210,1705342239051,-7776.15759874,0.00022997,2]
[311703212,1705342239061,-757.92876182,0.00022997,2]
[311703214,1705342239070,-2143.36217411,0.00022997,2]
[311703216,1705342239080,-220.20699802,0.00022997,2]
[311703218,1705342239089,-259.93235909,0.00022997,2]
[311703220,1705342239098,-6432.2832188,0.00022997,2]
[311703222,1705342239108,-157.42254353,0.00022997,2]
[311703225,1705342239128,-1177.12540915,0.00022997,2]
[311703227,1705342239139,-1766.5378558,0.00022997,2]
[311703229,1705342239149,-4622.10943873,0.00022997,2]
[311703231,1705342239159,-1848.36770859,0.00022997,2]
[311703233,1705342239168,-309.8668701,0.00022997,2]
[311703235,1705342239178,-220.85025968,0.00022997,2]
[311703238,1705342239189,-155.0,0.00022997,2]
[311703240,1705342239198,-4268.2521421,0.00022997,2]
[311703242,1705342239208,-211.48899874,0.00022998,2]
[311703244,1705342239217,-628.78952152,0.00022998,2]
[311703246,1705342239227,-11132.77710105,0.00022998,2]
[311703248,1705342239236,-8562.15,0.00022999,2]
[311703251,1705342239246,-11647.38,0.00022999,2]
[311703253,1705342239255,-235724.86682371,0.00022999,2]
[311703255,1705342239264,-300.0,0.00022999,2]
[311703257,1705342239274,-300.0,0.00022999,2]
[311703259,1705342239283,-300.0,0.00022999,2]
[311703261,1705342239293,-300.0,0.00022999,2]
[311703264,1705342239303,-300.0,0.00022999,2]
[311703267,1705342239313,-300.0,0.00022999,2]
[311703270,1705342239323,-300.0,0.00022999,2]
[311703274,1705342239333,-300.0,0.00022999,2]
[311703277,1705342239344,-300.0,0.00022999,2]
[311703280,1705342239354,-300.0,0.00022999,2]
[311703282,1705342239364,-771452.47324632,0.00022999,2]
[311703284,1705342239374,-7226870.61677439,0.00023,2]
[311703368,1705342240150,-62980.88852684,0.00023,2]
[311703371,1705342240162,-596.05964064,0.00023,2]
[311703373,1705342240174,-545.15386629,0.00023,2]
[311703376,1705342240197,-360.0,0.00023,2]
[311703639,1705342242730,-5259.03880682,0.00023,2]
[311703990,1705342246113,-696.87654293,0.00022997,2]
[311703992,1705342246122,-242.35981074,0.00022999,2]
[311703994,1705342246132,-313.85358623,0.00022999,2]
[311703996,1705342246141,-2082.05487693,0.00023,2]
[311703999,1705342246166,-66996.64981579,0.00023,2]
[311704001,1705342246175,-212761.71,0.00023,2]
[311704003,1705342246185,-255.68,0.00023039,2]
[311704005,1705342246194,-156.91,0.00023066,2]
[311704006,1705342246204,-154.74,0.00023141,2]
[311704007,1705342246214,-255.68,0.00023153,2]
[311704008,1705342246223,-255.68,0.00023267,2]
[311704009,1705342246232,-491.70102263,0.00023288,4]
[311704010,1705342246242,-429.14092696,0.00023288,4]
[311704011,1705342246251,-176.89887875,0.00023288,4]
[311704012,1705342246261,-411.80497942,0.00023288,2]
[311704013,1705342246271,-265.69947834,0.00023288,2]
[311704014,1705342246281,-228.93616295,0.00023288,4]
[311704016,1705342246290,-381.5602716,0.00023288,4]
[311704018,1705342246300,-255.68,0.00023382,2]
[311704020,1705342246310,-255.68,0.00023496,2]
[311704022,1705342246319,-154.74,0.00023514,2]
[311704024,1705342246329,-390.22813628,0.00023532,2]
[311704026,1705342246339,-255.68,0.0002361,2]
[311704029,1705342246350,-248.12,0.00023689,2]
[311704031,1705342246359,-255.68,0.00023724,2]
[311704033,1705342246369,-255.68,0.00023838,2]
[311704035,1705342246378,-154.74,0.00023888,2]
[311704037,1705342246387,-390.22813628,0.00024164,2]
[311704039,1705342246396,-154.74,0.00024261,2]
[311704041,1705342246405,-297.55,0.000244,2]
[311704043,1705342246415,-154.74,0.00024634,2]
[311704045,1705342246424,-250.0,0.00024658,2]
[311704047,1705342246433,-248.12,0.00024668,2]
[311704048,1705342246442,-390.22813628,0.00024797,2]
[311704051,1705342246451,-1000.0,0.000249,2]
[311704053,1705342246460,-44190.47126817,0.000249,2]
[311704056,1705342246478,-105778.00866776,0.000249,2]
[311704063,1705342246535,333.45,0.00021552,2]
[311704151,1705342265255,3486.07968408,0.00022,2]
[311704152,1705342316213,1914.12881296,0.00022101,2]
[311704153,1705342318703,162.12583632,0.00022101,2]
[311704156,1705342339701,308.83142289,0.00022,2]
[311704161,1705342393285,1012.902,0.00022,2]
[311704162,1705342416587,520.93349314,0.00022101,10]
[311704163,1705342424592,542.62714348,0.00022101,2]
[311704164,1705342635284,267.6873,0.00022002,2]
[311704165,1705342682424,150.0,0.00022101,2]
[311704166,1705342717676,388.3,0.00021556,2]
[311704170,1705342925074,8726.479,0.00022002,2]
[311704172,1705343031687,420.12,0.00021538,10]
[311704173,1705343031915,420.12,0.00022066,10]
[311704181,1705343204597,418.12,0.00020534,2]
[311704188,1705343432738,-300.0,0.00022102,2]
[311704189,1705343432748,-79.0,0.00022499,2]
[311704190,1705343432759,-75.79769562,0.00022499,2]
[311704191,1705343432769,-161.81,0.00022539,2]
[311704192,1705343432778,-264.02830438,0.00022599,2]
[311704193,1705343432794,-735.97169562,0.00022599,2]
[311704194,1705343432803,-161.81,0.0002267,2]
[311704195,1705343432812,-387.52470438,0.00022744,2]
[311704217,1705343438164,-105.39250399,0.00022744,2]
[311704218,1705343438174,-280.142134,0.00022744,2]
[311704219,1705343438184,-418.12,0.00022798,2]
[311704220,1705343438193,-125.54359824,0.000228,2]
[311704221,1705343438205,-36.26640176,0.000228,2]
[311704222,1705343438214,-150.0,0.00022898,2]
[311704223,1705343438224,-1144.27528416,0.00022899,2]
[311704224,1705343438236,-1214.37358567,0.00022899,2]
[311704225,1705343438248,-834.87280297,0.00022899,2]
[311704226,1705343438292,-53413.6649272,0.00022899,2]